{"text_format":"2","workbook":"xlsx","n_sheets":7,"sheets":["Info","Főösszesítő","Munkanem összesítő","33.","71.","72.","74."],"not_rendered":{"charts":0,"images":0,"macros":0,"external_links":0,"defined_names":0,"comments":0,"pivot_tables":0},"unopened":[],"bounds":{"document_bytes":16777216,"sheet_cells":100000,"run_cost":"one","rows_first":2000,"rows_last":500,"rows_between":2000,"halvings":0,"cell_chars":16384,"cell_head_chars":4096},"cells_cut":0,"cells_raw":0,"read":"whole","date_system":"1900"}

{"sheet":"Info","index":0,"n_rows":15,"n_cols":2,"rows_kept":15,"cut":false,"hidden":false,"merged":[[0,0,0,1],[17,0,17,1],[20,0,20,1],[25,0,25,1]]}
["Exportált költségvetés adatai"]
["Költségvetés neve:","SZTE Árpád tér"]
["Leírás:","Irodák kialakítása"]
["Költségvetés jellege:","Felújítás"]
["Tételek száma:","88 db"]
["Munkanemek száma:","4 db"]
["Fejezetek száma:","Nem fejezetes"]
["Építmény tulajdonsága:","Oktatási célú épület"]
[]
["Utolsó módosítás:","2021-02-28 09:38:31"]
[]
[]
["Bruttó végösszeg:",{"$f":"Főösszesítő!C8","v":0}]
[]
["Készítette:","Kiszin János"]

{"sheet":"Főösszesítő","index":1,"n_rows":8,"n_cols":4,"rows_kept":8,"cut":false,"hidden":false,"merged":[[0,0,0,3],[2,0,2,3],[5,2,5,3],[6,2,6,3],[7,2,7,3]]}
[]
[]
["Költségvetés főösszesítő"]
["Megnevezés",null,"Anyagköltség","Díjköltség"]
["1 Építmény közvetlen költségei",null,{"$f":"'Munkanem összesítő'!C6","v":0},{"$f":"'Munkanem összesítő'!D6","v":0}]
["2.1 ÁFA vetítési alap",null,{"$f":"ROUND(C5+D5,0)","v":0}]
["2.2 ÁFA",0.27,{"$f":"ROUND(C6*B7,0)","v":0}]
["3 A munka ára (HUF)",null,{"$f":"ROUND(C7+C6,0)","v":0}]

{"sheet":"Munkanem összesítő","index":2,"n_rows":6,"n_cols":4,"rows_kept":6,"cut":false,"hidden":false,"merged":[]}
["Ssz.","Megnevezés","Anyagköltség","Díjköltség"]
["33","Falazás és egyéb kőműves munkák",{"$f":"'33.'!I9","v":0},{"$f":"'33.'!J9","v":0}]
["71","Elektromos energiaellátás, villanyszerelés",{"$f":"'71.'!I46","v":0},{"$f":"'71.'!J46","v":0}]
["72","Épületautomatika, -felügyelet (gyengeáram)",{"$f":"'72.'!I13","v":0},{"$f":"'72.'!J13","v":0}]
["74","Tűz- és füstvédelem",{"$f":"'74.'!I4","v":0},{"$f":"'74.'!J4","v":0}]
[null,"Összesen (HUF)",{"$f":"ROUND(SUM(C2:C5),0)","v":0},{"$f":"ROUND(SUM(D2:D5),0)","v":0}]

{"sheet":"33.","index":3,"n_rows":9,"n_cols":10,"rows_kept":9,"cut":false,"hidden":false,"merged":[]}
["Ssz.","Tételszám","Tétel szövege","Menny.","Egység","Egys. anyag","Egys. gépköltség","Egys. díj","Anyag összesen","Díj összesen"]
[1,"33-062-1.3.2-3110002","Áttörés vezetékek részére, helyreállítással, 0,1 m²/db méretig, felmenő vegyes kő és betonfalba 50 cm vastagság felett (alapfalban is), Kisméretű tömör tégla 250x120x65 mm I.o. M 2,5 (Hf30-cm) falazó, meszes cementhabarcs",2,"db",0,0,0,{"$f":"ROUND(F2*D2,0)","v":0},{"$f":"ROUND((G2+H2)*D2,0)","v":0}]
[2,"33-063-3.2.2","Horonyvésés, téglafalban, 8,01-16,00 cm² keresztmetszet között",200,"m",0,0,0,0,0]
[3,"33-063-3.2.4","Horonyvésés, téglafalban, 24,01-50,00 cm² keresztmetszet között",60,"m",0,0,0,0,0]
[4,"33-063-21.1.1","Fészekvésés, téglafalban, 0,015 m³-ig",15,"db",0,0,0,0,0]
[7,"33-063-31.1","Mérési jelölés, kirajzolás horonyvéséshez",200,"m",0,0,0,0,0]
[8,"33-063-32.2","Mérési jelölés, kirajzolás fal-, és födémáttörés részére",3,"db",0,0,0,0,0]
[9,"33-063-32.1","Mérési jelölés, kirajzolás dobozhely részére",300,"db",0,0,0,0,0]
[null,null,"Munkanem összesen (HUF)",{"$nulls":5},{"$f":"ROUND(SUM(I2:I8),0)","v":0},{"$f":"ROUND(SUM(J2:J8),0)","v":0}]

{"sheet":"71.","index":4,"n_rows":46,"n_cols":10,"rows_kept":46,"cut":false,"hidden":false,"merged":[]}
["Ssz.","Tételszám","Tétel szövege","Menny.","Egység","Egys. anyag","Egys. gépköltség","Egys. díj","Anyag összesen","Díj összesen"]
[1,"71-000-1.1.1","Vezetékek, kábelek és szerelvények bontása; védőcső leszerelése műanyag csőből, falhoronyból",150,"m",0,0,0,{"$f":"ROUND(F2*D2,0)","v":0},{"$f":"ROUND((G2+H2)*D2,0)","v":0}]
[2,"71-000-1.1.2","Vezetékek, kábelek és szerelvények bontása; védőcső leszerelése műanyag csőből, tartószerkezetről",74,"m",0,0,0,0,0]
[3,"71-000-1.5.1","Vezetékek, kábelek és szerelvények bontása; vörösréz vagy alumínium vezeték leszerelése védőcsőből kihúzva, 10 mm2-ig",250,"m",0,0,0,0,0]
[4,"71-000-1.5.2","Vezetékek, kábelek és szerelvények bontása; vörösréz vagy alumínium vezeték leszerelése védőcsőből kihúzva, 11-120 mm2",30,"m",0,0,0,0,0]
[5,"71-000-1.6","Vezetékek, kábelek és szerelvények bontása; kábelszerű vezeték leszerelése tartószerkezetről",50,"m",0,0,0,0,0]
[6,"71-000-1.8","Vezetékek, kábelek és szerelvények bontása; vezetékcsatorna, kábelcsatorna, mellvédcsatorna, padlószegélycsatorna leszerelése",140,"m",0,0,0,0,0]
[7,"71-000-1.10","Vezetékek, kábelek és szerelvények bontása; áramköri elosztók, fogyasztásmérő szekrények",1,"db",0,0,0,0,0]
[8,"71-000-1.11","Vezetékek, kábelek és szerelvények bontása; kapcsolók, csatlakozó aljzatok, falifoglalatok, csengők, reduktorok, erős- vagy gyengeáramú nyomók, termosztátok, lépcsőházi automaták, jelzők leszerelése",34,"db",0,0,0,0,0]
[9,"71-000-1.12","Vezetékek, kábelek és szerelvények bontása; ipari kapcsolók, ipari csatlakozók leszerelése",6,"db",0,0,0,0,0]
[10,"71-000-1.13","Vezetékek, kábelek és szerelvények bontása; mindennemű fényforrás és lámpatest leszerelése",38,"db",0,0,0,0,0]
[11,"71-000-1.14","Vezetékek, kábelek és szerelvények bontása; biztosító, elosztótáblák (tokozott is), jelzőberendezések leszerelése",4,"db",0,0,0,0,0]
[12,"71-000-1.15","Vezetékek, kábelek és szerelvények bontása; mágneskapcsolók, áram-védőkapcsolók, motorvédő-kapcsolók leszerelése",6,"db",0,0,0,0,0]
[13,"71-001-1.1.1.1.1-0110116","Merev simafalú és gégecső, műanyag védőcső elhelyezése, elágazó dobozokkal, előre elkészített falhoronyba, vékony vagy vékonyított falú kivitelben, könnyű mechanikai igénybevételre, Névleges méret: 11-16 mm, Beltéri Mü III. vékonyfalú, hajlítható merev műanyag szürke védőcső 16 mm, Kód: MU-III 16",200,"m",0,0,0,0,0]
[16,"71-001-11.1.1-0540817","Elágazó doboz illetve szerelvénydoboz elhelyezése, süllyesztve, fészekvésés nélkül, 30-60 mm mélységig, kör vagy négyszög alakú, max. négyes sorolásig, KOPOS szerelvénydoboz sorolható, D73, 45mm mély, Cikkszám: KP 68/D KA",15,"db",0,0,0,0,0]
[17,"71-001-12.1-0121514","Gipszkarton szerelvénydoboz beépítése,üregfúrás nélkül,(szerelvénydoboz, mélyített szerelvény és kötődoboz, (fedéllel)kettős szerelvénydoboz fedéllel), elágazó doboz, 60 mm mélységig, kör vagy négyszög alakú, max. ötös sorolásig, KOPOS süllyesztődoboz gipszkartonfalba, univerzális egyes doboz, D 73, sorolható kivitel, 35mm mély R: KU 68/71L1 NA",300,"db",0,0,0,0,0]
[19,"71-001-11.1.2-0121101","Elágazó doboz illetve szerelvénydoboz elhelyezése, süllyesztve, fészekvésés nélkül, 60 mm mélység felett, kör vagy négyszög alakú, Beltéri süllyeszthető műanyag doboz, MÜDS 100 fedéllel, fehér, Kód: MÜDS 100",4,"db",0,0,0,0,0]
[20,"71-002-1.1-0210002","Szigetelt vezeték elhelyezése védőcsőbe húzva vagy vezetékcsatornába fektetve, rézvezetővel, leágazó kötésekkel, szigetelés ellenállás méréssel, a szerelvényekhez csatlakozó vezetékvégek bekötése nélkül, keresztmetszet: 0,5-2,5 mm², Cabling Systems Hungary H07V-U 450/750V 1x1,5 mm², tömör rézvezetővel (MCu)",300,"m",0,0,0,0,0]
[21,"71-002-1.1-0210003","Szigetelt vezeték elhelyezése védőcsőbe húzva vagy vezetékcsatornába fektetve, rézvezetővel, leágazó kötésekkel, szigetelés ellenállás méréssel, a szerelvényekhez csatlakozó vezetékvégek bekötése nélkül, keresztmetszet: 0,5-2,5 mm², Cabling Systems Hungary H07V-U 450/750V 1x2,5 mm², tömör rézvezetővel (MCu)",860,"m",0,0,0,0,0]
[23,"71-002-15.1-0224425","Tűzjelző kábel elhelyezése merev vagy sodrott erű árnyékolt vagy árnyékolatlan piros PVC köpenyű, 2-4 erű rézvezetővel, keresztmetszet: 0,75-1,5 mm², Cabling Systems Hungary JB-Y(St)Y 2x2x0,8 tűzjelző kábel (100m)",100,"m",0,0,0,0,0]
[25,"71-002-20.1.1-0336573","Kábelszerű vezeték elhelyezése védőcsőbe húzva vagy vezetékcsatornába fektetve, 2-5 erű rézvezetővel, leágazó kötésekkel, szigetelés ellenállás méréssel, a szerelvényekhez csatlakozó vezetékvégek bekötése nélkül, 2-3 erű, gyors vezetékösszekötővel, keresztmetszet: 2,5 mm2-ig, Cabling Systems Hungary NYY-J 0,6/1 kV 3x2,5 mm²",350,"m",0,0,0,0,0]
[29,"71-002-75.3.2","Kábelcsatlakozás kialakítása bekötéssel, fázissínről történő leágazáshoz, keresztmetszet: 25-50 mm²",5,"db",0,0,0,0,0]
[31,"71-001-51.12.1.2-0545089","Padló alatti szerelés; süllyesztett előreszerelvényezett padlódoboz, tetővel felnyíló fedéllel, 8-9 modullal, LEGRAND Összeszerelt pop-up felnyíló süllyesztett padlódoboz 8 (2x4) modul, 2x2P+F csatlakozóaljzattal, 2xRJ45 Cat6 FTP aljzattal, 1x HD15+Jack aljzattal, vezetékekkel, fehér",2,"db",0,0,0,0,0]
[32,"71-003-12.2-0624012","Moduláris elosztóblokk elhelyezése, kalapsínre szerelhető kivitelben, 4 pólusú, LEGRAND Lexic elosztóblokk 4P 125A 4x11 furat (Kat.szám:004886)",2,"db",0,0,0,0,0]
[33,"71-003-13.1-0633078","Fésűs sín felszerelése kismegszakítókra, 13 modul méretig, LEGRAND Lexic fésűs sín fogas 4P 3x4P (Kat.szám:404944)",8,"db",0,0,0,{"$f":"ROUND(F25*D25,0)","v":0},{"$f":"ROUND((G25+H25)*D25,0)","v":0}]
[34,"71-001-48.1.2.1.2-0543068","Kábeltálca elhelyezése, tartószerkezet nélkül, bármely szélességben, idomok nélkül, száraz belsőtéri használatra, mennyezetre rögzítve, szélesség: 200 mm-ig, oldalmagasság: 60 mm, OBO RKSM 620 kábeltálca perforált 0,75 mm, 60x200 mm, FS szalaghorganyzott, Cikkszám: 6047638",35,"m",0,0,0,0,0]
[35,"71-001-49.2-0543546","Kábeltálca tartószerkezetek elhelyezése, mennyezetre rögzítéshez, OBO US 3K/20 függesztőoszlop fejlemezzel 200 mm, FT tűzihorganyzott, Cikkszám: 6342351",40,"db",0,0,0,0,0]
[36,"71-001-50.1.1.2-0543112","Kábeltálca kiegészítő elemeinek elhelyezése, száraz belsőtéri használatú, szélesség: 200 mm-ig, oldalmagasság: 60 mm, OBO RLVK 60 hosszanti / egyenes összekötő, FS szalaghorganyzott, Cikkszám: 6067093",15,"db",0,0,0,0,0]
[37,"71-001-50.1.1.2-0543113","Kábeltálca kiegészítő elemeinek elhelyezése, száraz belsőtéri használatú, szélesség: 200 mm-ig, oldalmagasság: 60 mm, OBO RWVL 60 hossz- és sarokösszekötő, FS szalaghorganyzott, Cikkszám: 6067115",10,"db",0,0,0,0,0]
[38,"71-001-50.1.1.2-0543119","Kábeltálca kiegészítő elemeinek elhelyezése, száraz belsőtéri használatú, szélesség: 200 mm-ig, oldalmagasság: 60 mm, OBO RBM 45 620, 45 fokos ív 60x200 mm, FS szalaghorganyzott, Cikkszám: 6041044",4,"db",0,0,0,0,0]
[39,"71-001-50.1.1.2-0543135","Kábeltálca kiegészítő elemeinek elhelyezése, száraz belsőtéri használatú, szélesség: 200 mm-ig, oldalmagasság: 60 mm, OBO RAAM 620, beépíthető leágazás 60x200 mm, FS szalaghorganyzott, Cikkszám: 6041234",3,"db",0,0,0,0,0]
[40,"71-001-50.1.1.2-0543160","Kábeltálca kiegészítő elemeinek elhelyezése, száraz belsőtéri használatú, szélesség: 200 mm-ig, oldalmagasság: 60 mm, OBO RBV 620 S függőleges felszálló ív 60x200 mm, FS szalaghorganyzott, Cikkszám: 7007013",3,"db",0,0,0,0,0]
[41,"71-005-1.1.1.4-0545314","Komplett világítási  és telekommunikációs szerelvények, Fali kapcsolók elhelyezése, süllyesztve, 10-16A kétáramkörös (csillár) kapcsolók, LEGRAND NILOE csillárkapcsoló, körömmel, fehér",4,"db",0,0,0,0,0]
[42,"71-005-1.1.1.5-0562006","Komplett világítási  és telekommunikációs szerelvények, Fali kapcsolók elhelyezése, süllyesztve, 10-16A alternatív (váltó) kapcsolók, LEGRAND NILOE váltókapcsoló jelzőfénnyel, fehér",2,"db",0,0,0,0,0]
[43,"71-005-1.11.1.1.1-0562064","Komplett világítási  és telekommunikációs szerelvények, Csatlakozóaljzat elhelyezése, süllyesztve, 16A, földelt, egyes csatlakozóaljzat (2P+F), LEGRAND NILOE 2P+F csatlakozóaljzat monoblokk, fehér",100,"db",0,0,0,0,0]
[45,"71-005-1.31.2-0533647","Komplett világítási  és telekommunikációs szerelvények, Telefon és PC csatlakozóaljzat, USB töltő aljzat, hangszóró-csatlakozó elhelyezése (egyes/kettős), PC, USB, hangszóró, LEGRAND Valeva Life 2xRJ45 Cat6a STP mechanizmus, LCS2",80,"db",0,0,0,0,0]
[46,"71-007-21.2.1.1-0315503","Szakaszolókapcsoló (főkapcsoló) elhelyezése,IP 65 védettségű előlappal, műanyag tokozással, háromsarkú, 64A-ig, GANZ KK GK41  T103/75 KL 1 tokozott szakaszolókapcsoló, 3 sarkú",4,"db",0,0,0,0,0]
[49,"71-009-3.2.3","Áramköri elosztók elhelyezése falba süllyesztett kivitelben, kalapsínes szerelőlappal, földsínnel, max. 160A-ig, IP 30 védettséggel (kismegszakítók, védőkapcsolók, távkapcsolók stb. számára), helyszínen összeszerelve, elosztók 120 egység",1,"db",0,0,0,0,0]
[51,"71-010-4.5-0143175","Álmennyezeti lámpatest elhelyezése előre elkészített tartószerkezetre, burával vagy üveglappal lezárt, LED-es kivitelben, V-TAC (HOLUX) VT-6060; 45W / 3600lm álmennyezeti LED-es lámpatest, semlegesfehér (4500K), 595x595mm, működtető nélkül Csz:6024",45,"db",0,0,0,0,0]
[53,"71-010-13.2.1.2.8.1.2-0184232","LED-es alumínium profil elhelyezése vonalba vagy alakzatba, bútor profilok, (LED szalag külön tételben), felületre, sarok vagy sík felületre, profil kiegészítő elemek, takaró búra profil, C/H profilhoz, 2,02 m-es elemekből, Lumines Led - Takaróprofil, 30°-os ívelt, víztiszta PMMA, 92%, méret(mm):13x5x2020, term.kód:TP30-21, katalógus:11-2080-20",2,"db",0,0,0,0,0]
[54,"71-011-6.11.0","Géptér világítás kapcsolóinak és reléjeinek áthelyezése",1,"kpl",0,0,0,0,0]
[56,"71-011-6.11.1","Kijáratjelzők,vészvilágítók elhelyezése LED-es fényforrások",4,"db",0,0,0,0,0]
[57,"71-011-6.11.2","Bojler csatlakozási pont kialakítása,bekötéssel",1,"db",0,0,0,0,0]
[58,"71-011-6.11.3","SPLIT klíma csatlakozási pont kialakítása,bekötéssel",4,"db",0,0,0,0,0]
[59,"71-013-9","Érintésvédelmi- és fénymérési  jegyzőkönyv, átadási dokumentáció készítése",400,"mp*",0,0,0,0,0]
[null,null,"Munkanem összesen (HUF)",{"$nulls":5},{"$f":"ROUND(SUM(I2:I45),0)","v":0},{"$f":"ROUND(SUM(J2:J45),0)","v":0}]

{"sheet":"72.","index":5,"n_rows":13,"n_cols":10,"rows_kept":13,"cut":false,"hidden":false,"merged":[]}
["Ssz.","Tételszám","Tétel szövege","Menny.","Egység","Egys. anyag","Egys. gépköltség","Egys. díj","Anyag összesen","Díj összesen"]
[1,"72-000-41.1.1","Informatikai rendszerek, strukturált adatátviteli kábel bontása, falikábel",150,"m",0,0,0,{"$f":"ROUND(F2*D2,0)","v":0},{"$f":"ROUND((G2+H2)*D2,0)","v":0}]
[2,"72-000-41.4","Informatikai rendszerek, csatlakozók bontása",20,"db",0,0,0,0,0]
[4,"72-041-1.1.1.5.1-0110114","Strukturált adatátviteli kábel elhelyezése tömör rézvezetővel, védőcsőbe húzva, kábeltálcára vagy kábelcsatornába fektetve, falikábel, 450-600 MHz frekvenciatartomány Cat.6A S/FTP, Cabling Systems Hungary  S/FTP falikábel cat.6A, 500MHz, FR-LSOH, türkíz, 1000 m",2500,"m",0,0,0,0,0]
[5,"72-041-15.2-0114172","Patch panel elhelyezése előre kialakított rack szekrényben, 4-96 Port, RJ 45 Cat. 6 komplett, HP Aruba 10Giga LCS2 patch panel, 24xRJ45, 1U, Cat6A, STP",4,"db",0,0,0,0,0]
[8,"72-041-21.1.2-0550005","Csatlakozó felszerelése réz strukturált kábelre, csatlakozó RJ 45 Cat.6 - Cat.7A, LAN Keystone modul Cat6A FTP (toolless), Cikkszám: TA-180FTPC6ATD",106,"db",0,0,0,0,0]
[9,"72-041-141.1.1","Kábelvég kifejtése blankolva, szétsodorva, 5-50 érpár db között, beltéri rézkábel",4,"db",0,0,0,0,0]
[10,"72-041-152.1","Diagnosztikai vizsgálat végpontokra számolva,vizsgálat műszerrel, vizsgálat eredményéről jegyzőkönyv készítése, rézkábel esetén",200,"db",0,0,0,0,0]
[11,"72-001-51.1-0213561       CODEFON digitális audio kaputelefon beltéri egység","Audiós és videós rendszerek opciói, vivőfrekvenciás INTERCOM rendszer elhelyezése és működtetése 220 V-os hálózati feszültségen, URMET kétcsatornás INTERCOM készülék, audiós rendszerekhez, R.sz.: 8202/1",4,"db",0,0,0,0,0]
[15,"72-001-51.4-0140006      CODEFON audio kaputelefon központ, proxy és számlapos","Audiós és videós rendszerek opciói, elektromos ajtó- és kapuzárak ellenoldalának elhelyezése, NUOVA FEB elektromos ellenoldal, hosszú, impulzus üzemű, audiós és videós rendszerekhez, kioldós, acél előlapos, R.sz.: 16200-P/1",1,"db",0,0,0,0,0]
[18,"72-001-29.9-0224592","Kaputelefon rendszerelemek elhelyezése falra, kapura vagy süllyesztve, vésés és huzalozás nélkül, tápegység, YLI Szünetmentes tápegység kaputelefonokhoz; Bemenet: 230V AC; kimenet: 12V DC; Maximális terhelhetőség: 3A; Sínre, vagy felületre szerelhető, Csz: WL-PS-2-3",1,"db",0,0,0,0,0]
[19,"72-001-51.7-0223051","Riasztó és beléptető rendszer bontása,új kezelő egység és mozgásérzékelők kiépítése, valamint 2db beléptető kiépítése a bontott anyagok felhasználásával",1,"kpl",0,0,0,0,0]
[null,null,"Munkanem összesen (HUF)",{"$nulls":5},{"$f":"ROUND(SUM(I2:I12),0)","v":0},{"$f":"ROUND(SUM(J2:J12),0)","v":0}]

{"sheet":"74.","index":6,"n_rows":4,"n_cols":10,"rows_kept":4,"cut":false,"hidden":false,"merged":[]}
["Ssz.","Tételszám","Tétel szövege","Menny.","Egység","Egys. anyag","Egys. gépköltség","Egys. díj","Anyag összesen","Díj összesen"]
[1,"74-011-1.4.1.2-0915001","Intelligens tűzjelző és vészjelző rendszerek kiépítése előre elkészített tartószerkezetre, kiépített kábelezésre, intelligens érzékelők elhelyezése, füstérzékelő, optikai, ASM Security PROTEC FAST interaktív optikai füstérzékelő, egyszerű címzés, rövid észlelési idő, 3mA, Cikkszám: 6000PLUS/OP",8,"db",0,0,0,{"$f":"ROUND(F2*D2,0)","v":0},{"$f":"ROUND((G2+H2)*D2,0)","v":0}]
[2,"74-011-1.5.3.1-0915061","Intelligens tűzjelző és vészjelző rendszerek kiépítése előre elkészített tartószerkezetre, kiépített kábelezésre, intelligens eszközök elhelyezése, hangjelzők, beltéri, ASM Security PROTEC huroktáplált, 101dBA, 5mA, 3 hanggal**, piros, standard aljzat (** hanggal választható a tűzjelző központhoz), Cikkszám: 6000/SSR2",1,"db",0,0,0,{"$f":"ROUND(F3*D3,0)","v":0},{"$f":"ROUND((G3+H3)*D3,0)","v":0}]
[null,null,"Munkanem összesen (HUF)",{"$nulls":5},{"$f":"ROUND(SUM(I2:I3),0)","v":0},{"$f":"ROUND(SUM(J2:J3),0)","v":0}]